bitfinex-derivatives/quotes_SOLF0:USTF0_20241127
["timestamp","ask_amount","ask_price","bid_price","bid_amount"]
[1732749291238,2.0757,240.62,240.55,2.42]
[1732749291435,2.0758,240.61,240.55,4.4963]
[1732749292145,11.75118884,240.66,240.55,2.42]
[1732749292338,7.79352878,240.65,240.55,2.42]
[1732749292641,2.0758,240.62,240.55,2.42]
[1732749292844,11.75118884,240.66,240.55,2.42]
[1732749293045,7.79339696,240.65,240.52,3.3937]
[1732749293339,2.0755,240.65,240.58,2.0761]
[1732749293541,2.0755,240.65,240.53,2.42]
[1732749293542,2.42,240.68,240.54,11.75118884]
[1732749293743,7.79492909,240.67,240.54,11.75118884]
[1732749294035,2.0757,240.62,240.56,2.0762]
[1732749294239,2.0757,240.62,240.53,2.42]
[1732749294641,2.0758,240.61,240.55,2.0763]
[1732749295836,2.0759,240.6,240.55,2.0763]
[1732749296538,4.9367,240.69,240.55,2.42]
[1732749296734,7.798635,240.68,240.55,2.42]
[1732749296942,2.5167,240.69,240.55,2.42]
[1732749297138,7.79932782,240.68,240.55,2.42]
[1732749297345,2.0755,240.65,240.59,2.076]
[1732749297941,2.0756,240.64,240.59,2.076]
[1732749298148,2.5167,240.69,240.6,2.42]
[1732749298442,7.79634059,240.68,240.6,2.42]
[1732749298739,7.79634059,240.67,240.6,2.42]
[1732749298946,2.42,240.75,240.6,2.42]
[1732749299141,7.79993605,240.72,240.63,2.0756]
[1732749299344,7.79993605,240.71,240.61,1.2715]
[1732749299544,1.2679,240.8,240.61,1.2715]
[1732749299734,2.0748,240.73,240.61,1.2715]
[1732749299941,7.80270786,240.72,240.61,1.2715]
[1732749300239,7.80270786,240.72,240.62,18.80556285]
[1732749300542,3.7144,240.85,240.66,18.80556285]
[1732749300736,7.80663259,240.83,240.67,2.42]
[1732749300940,7.80663259,240.82,240.67,2.42]
[1732749301238,7.80663259,240.81,240.66,2.42]
[1732749301443,2.0749,240.72,240.67,2.0753]
[1732749301950,2.0749,240.72,240.66,4.4953]
[1732749302149,2.0749,240.72,240.66,2.42]
[1732749302937,2.0752,240.69,240.64,2.0756]
[1732749303143,21.22556285,240.79,240.64,2.42]
[1732749303343,7.80331427,240.78,240.64,2.42]
[1732749303643,7.80331427,240.77,240.64,2.42]
[1732749303839,7.80331427,240.76,240.64,2.42]
[1732749304043,7.80331427,240.75,240.64,2.42]
[1732749304350,18.80556285,240.83,240.64,2.42]
[1732749304549,7.80242498,240.82,240.64,2.42]
[1732749304747,7.80242498,240.81,240.65,2.42]
[1732749304949,18.80556285,240.83,240.65,2.42]
[1732749304950,2.0753,240.68,240.65,2.42]
[1732749305246,18.80556285,240.83,240.65,2.42]
[1732749305447,7.80013441,240.82,240.65,2.42]
[1732749305654,2.0749,240.72,240.67,2.0753]
[1732749306051,18.80556285,240.83,240.65,2.42]
[1732749306254,7.79854681,240.82,240.65,2.42]
[1732749306455,7.79854681,240.81,240.65,2.42]
[1732749306657,7.79854681,240.8,240.65,2.42]
[1732749306856,29.02410966,240.79,240.61,1.2715]
[1732749307058,9.01194681,240.78,240.62,2.42]
[1732749307359,2.0754,240.66,240.62,2.42]
[1732749307656,1.2134,240.78,240.62,2.42]
[1732749307955,7.79838506,240.77,240.62,4.4957]
[1732749308157,7.79838506,240.76,240.61,1.2715]
[1732749308354,7.79838506,240.75,240.61,3.6915]
[1732749308553,10.32978506,240.74,240.61,2.42]
[1732749308754,7.79838506,240.73,240.61,2.42]
[1732749308950,2.5314,240.74,240.61,2.42]
[1732749308951,7.79838506,240.72,240.61,2.42]
[1732749309254,7.79838506,240.71,240.53,18.80556285]
[1732749309461,7.79838506,240.7,240.57,18.80556285]
[1732749309657,7.79838506,240.69,240.57,18.80556285]
[1732749309961,2.42,240.73,240.57,18.80556285]
[1732749310156,7.79725811,240.72,240.54,2.42]
[1732749310460,7.79725811,240.71,240.59,18.80556285]
[1732749310647,7.79725811,240.72,240.63,18.80556285]
[1732749310852,1.2134,240.78,240.64,2.42]
[1732749311053,1.2134,240.78,240.64,3.6789]
[1732749311054,7.7969794,240.77,240.64,3.6789]
[1732749311260,7.7969794,240.76,240.64,3.6789]
[1732749311461,1.2134,240.78,240.64,3.6789]
[1732749311655,7.79760662,240.77,240.65,18.78331138]
[1732749311855,1.2692,240.82,240.64,3.6789]
[1732749312151,7.79789518,240.81,240.64,3.6789]
[1732749312353,7.79789518,240.8,240.64,2.42]
[1732749312553,7.79789518,240.79,240.64,2.42]
[1732749312756,7.79789518,240.78,240.64,2.42]
[1732749313065,18.78331138,240.79,240.62,2.42]
[1732749313066,10.21789518,240.77,240.62,2.42]
[1732749313259,7.79789518,240.76,240.62,2.42]
[1732749313460,7.79789518,240.75,240.62,2.42]
[1732749313658,7.79789518,240.74,240.62,2.42]
[1732749313864,18.78331138,240.75,240.57,2.42]
[1732749313865,2.0758,240.62,240.57,2.42]
[1732749314164,18.78331138,240.75,240.57,2.42]
[1732749314165,2.42,240.71,240.57,2.42]
[1732749314467,7.7939233,240.7,240.57,2.42]
[1732749314667,7.7939233,240.69,240.57,2.42]
[1732749314965,2.0754,240.66,240.6,2.0759]
[1732749315268,4.9982,240.76,240.57,21.20331138]
[1732749315460,7.79731072,240.75,240.57,21.20331138]
[1732749315661,7.79731072,240.74,240.57,21.20331138]
[1732749315861,2.075,240.71,240.64,2.0755]
[1732749316263,4.9982,240.76,240.64,2.0755]
[1732749316460,7.79852431,240.75,240.64,2.0755]
[1732749316767,7.79852431,240.74,240.63,2.42]
[1732749317069,4.9982,240.76,240.63,2.42]
[1732749317070,2.075,240.7,240.63,4.4956]
[1732749317256,7.79852431,240.73,240.63,4.4956]
[1732749317459,4.9982,240.76,240.63,4.4956]
[1732749317766,7.79605381,240.75,240.63,4.4956]
[1732749317969,7.79605381,240.75,240.63,2.42]
[1732749318270,2.0751,240.7,240.63,2.42]
[1732749318457,2.5782,240.76,240.63,2.42]
[1732749318660,7.79637012,240.75,240.63,2.42]
[1732749318860,7.79637012,240.74,240.63,2.42]
[1732749319063,2.5782,240.76,240.63,2.42]
[1732749319064,7.79637012,240.73,240.63,2.42]
[1732749319270,7.79637012,240.72,240.63,2.42]
[1732749319564,2.5782,240.76,240.65,2.0754]
[1732749319771,7.79718519,240.75,240.65,2.0754]
[1732749320058,2.5782,240.76,240.64,2.0756]
[1732749320059,2.075,240.7,240.64,2.0756]
[1732749322055,2.0749,240.72,240.67,2.0753]
[1732749322260,1.2707,240.78,240.63,2.42]
[1732749322463,7.79902956,240.77,240.64,1.245]
[1732749322657,7.79902956,240.76,240.73,2.0748]
[1732749322864,7.79902956,240.75,240.73,2.0748]
[1732749323066,2.42,240.82,240.73,2.0748]
[1732749323263,2.42,240.82,240.7,2.42]
[1732749323770,2.0747,240.75,240.7,2.42]
[1732749323972,7.79760666,240.81,240.7,2.42]
[1732749324464,9.04780666,240.8,240.64,2.42]
[1732749324664,18.78331138,240.79,240.64,2.42]
[1732749324864,2.0751,240.7,240.64,4.4955]
[1732749325072,2.0751,240.7,240.64,2.42]
[1732749325465,2.0751,240.7,240.64,4.4955]
[1732749325666,1.2502,240.8,240.64,2.42]
[1732749325970,2.0748,240.74,240.64,2.42]
[1732749326166,7.79475637,240.73,240.64,2.42]
[1732749326364,1.2502,240.8,240.64,2.42]
[1732749326567,2.0749,240.73,240.67,2.0752]
[1732749326767,1.2502,240.8,240.64,2.42]
[1732749326969,7.79597191,240.79,240.64,2.42]
[1732749327272,1.2502,240.8,240.64,2.42]
[1732749327273,7.79597191,240.78,240.64,2.42]
[1732749327469,7.79597191,240.77,240.64,2.42]
[1732749327667,7.79597191,240.79,240.64,2.42]
[1732749327969,7.79597191,240.78,240.64,2.42]
[1732749328166,7.79597191,240.77,240.64,2.42]
[1732749328370,2.0748,240.74,240.69,2.0751]
[1732749328864,2.0748,240.73,240.69,2.0751]
[1732749329566,2.0744,240.78,240.64,2.42]
[1732749329868,7.80334326,240.77,240.64,2.42]
[1732749330071,2.0744,240.78,240.67,18.79320187]
[1732749330271,7.80717713,240.77,240.74,2.0746]
[1732749330572,2.0744,240.78,240.74,2.0746]
[1732749330876,53.50209277,240.85,240.72,2.42]
[1732749331064,2.42,240.9,240.72,2.42]
[1732749331261,7.8070372,240.83,240.72,3.6617]
[1732749331466,7.8070372,240.82,240.72,3.6617]
[1732749331673,1.2373,240.91,240.73,1.2488]
[1732749331868,2.0738,240.85,240.81,2.0741]
[1732749332073,1.2373,240.91,240.79,2.42]
[1732749332074,7.8100227,240.84,240.79,2.42]
[1732749332264,7.8100227,240.83,240.79,2.42]
[1732749332470,2.0736,240.87,240.79,2.42]
[1732749332671,7.81418751,240.86,240.79,2.42]
[1732749332867,7.81418751,240.85,240.83,2.0739]
[1732749333063,2.0736,240.87,240.83,2.0739]
[1732749333270,2.0738,240.85,240.79,2.42]
[1732749333469,1.2373,240.91,240.8,2.0741]
[1732749333672,7.81499995,240.9,240.79,2.42]
[1732749333875,7.81499995,240.89,240.79,21.21320187]
[1732749334078,7.81499995,240.88,240.83,2.0739]
[1732749334269,7.81499995,240.88,240.8,1.268]
[1732749334468,1.2502,240.98,240.8,1.268]
[1732749334469,7.81499995,240.87,240.8,1.268]
[1732749334666,18.79320187,240.97,240.82,2.074]
[1732749334873,2.0736,240.87,240.82,2.074]
[1732749335172,18.79320187,240.97,240.84,2.0738]
[1732749335373,2.0732,240.91,240.8,1.268]
[1732749335569,18.79320187,240.97,240.8,1.268]
[1732749335972,2.0736,240.87,240.8,1.268]
[1732749336471,18.79320187,240.97,240.83,2.0739]
[1732749336776,7.80588302,240.94,240.83,2.0739]
[1732749336977,7.80588302,240.93,240.83,2.0739]
[1732749337271,7.80588302,240.92,240.83,2.0739]
[1732749337471,7.80588302,240.91,240.8,1.268]
[1732749337675,3.6702,240.98,240.8,1.268]
[1732749337676,2.0736,240.87,240.8,1.268]
[1732749337876,18.79320187,240.97,240.83,2.0739]
[1732749338077,2.0735,240.88,240.8,1.268]
[1732749338470,18.79320187,240.97,240.8,1.268]
[1732749338671,2.0736,240.87,240.8,1.268]
[1732749338877,18.79320187,240.97,240.8,1.268]
[1732749339080,7.80059068,240.94,240.8,1.268]
[1732749339272,3.6702,240.98,240.8,1.268]
[1732749339273,7.80059068,240.93,240.8,1.268]
[1732749339469,7.80059068,240.92,240.86,2.0738]
[1732749339672,3.6702,240.98,240.86,2.4]
[1732749339874,2.0735,240.9,240.86,2.4]
[1732749340276,2.0735,240.91,240.86,4.4739]
[1732749340875,3.6702,240.98,240.86,4.4739]
[1732749340876,3.6702,240.98,240.86,2.4]
[1732749341086,2.0738,240.87,240.86,2.4]
[1732749342176,2.0737,240.89,240.86,2.4]
[1732749342970,3.6702,240.98,240.86,2.4]
[1732749343176,7.79217776,240.94,240.86,2.4]
[1732749343375,7.79217776,240.93,240.86,2.4]
[1732749343576,2.0734,240.91,240.86,2.4]
[1732749343879,2.4,241.08,240.86,2.4]
[1732749344079,2.0729,240.97,240.91,2.0734]
[1732749344385,2.4821,241.06,240.92,2.4]
[1732749344681,7.78744569,240.99,240.92,2.4]
[1732749344881,7.78744569,240.98,240.92,2.4]
[1732749345077,2.4821,241.06,240.92,2.4]
[1732749345288,7.78652091,240.99,240.92,2.4]
[1732749345480,7.78652091,240.98,240.92,2.4]
[1732749345679,2.4821,241.06,240.92,2.4]
[1732749345883,7.7829171,240.99,240.92,2.4]
[1732749346188,7.7829171,240.98,240.92,2.4]
[1732749346486,7.7792868,240.97,240.92,2.4]
[1732749346779,21.27530187,241.06,240.92,2.4]
[1732749346980,7.7792379,240.99,240.87,2.38]
[1732749347183,2.38,241.02,240.87,2.38]
[1732749347184,7.7792379,240.98,240.87,2.38]
[1732749347383,7.7792379,240.97,240.82,4.4541]
[1732749347687,10.1592379,240.96,240.82,2.38]
[1732749347877,7.7792379,240.95,240.82,2.38]
[1732749348182,2.0738,240.88,240.82,2.38]
[1732749348684,2.0739,240.86,240.82,2.38]
[1732749349982,2.0739,240.86,240.81,4.4542]
[1732749350575,4.8376,240.96,240.82,2.0742]
[1732749350777,7.77271749,240.95,240.82,2.0742]
[1732749350981,7.77271749,240.94,240.82,2.0742]
[1732749351289,7.77271749,240.93,240.81,2.38]
[1732749351484,4.8376,240.96,240.81,2.38]
[1732749351782,2.0736,240.88,240.83,2.074]
[1732749351984,4.8376,240.96,240.81,2.38]
[1732749352179,4.8376,240.96,240.82,2.0741]
[1732749352180,2.0736,240.88,240.82,2.0741]
[1732749352385,2.0736,240.88,240.82,4.4541]
[1732749352585,2.0736,240.88,240.82,2.38]
[1732749353688,2.0736,240.88,240.83,2.074]
[1732749353890,2.0737,240.87,240.83,2.074]
[1732749354082,4.8376,240.96,240.82,2.38]
[1732749354282,4.8376,240.96,240.85,11.72409964]
[1732749354587,7.77291981,240.95,240.82,2.38]
[1732749354783,7.77291981,240.94,240.82,2.38]
[1732749354982,4.8376,240.96,240.82,2.38]
[1732749355181,7.77324103,240.95,240.82,2.38]
[1732749355387,7.77324103,240.94,240.82,2.38]
[1732749355587,4.8376,240.96,240.82,2.38]
[1732749355784,2.0734,240.9,240.85,13.79789964]
[1732749356392,2.0734,240.91,240.86,2.0737]
[1732749356994,2.4576,240.96,240.85,11.72409964]
[1732749357191,2.06226391,241.22,240.93,11.72409964]
[1732749357392,11.72409964,241.07,240.94,2.38]
[1732749357595,2.073,240.95,240.94,2.38]
[1732749357899,1.288,241.06,240.92,2.38]
[1732749358085,2.0732,240.94,240.92,2.38]
[1732749359896,1.2359,241.08,240.93,11.72409964]
[1732749360198,9.08471634,241.07,240.93,11.72409964]
[1732749360498,2.0722,241.05,241.0,2.0726]
[1732749360793,14.10409964,241.14,241.0,2.38]
[1732749360794,11.72409964,241.14,241.0,2.38]
[1732749360998,2.0722,241.05,241.0,2.38]
[1732749361592,2.0718,241.1,241.0,2.38]
[1732749361795,7.77346888,241.09,241.0,2.38]
[1732749362098,2.0723,241.03,241.0,2.38]
[1732749362292,2.6347,241.13,240.97,11.72409964]
[1732749362497,11.72409964,241.1,240.98,2.38]
[1732749362688,7.77064683,241.09,240.98,2.38]
[1732749362990,7.77064683,241.09,241.01,11.72409964]
[1732749363294,7.76608217,241.08,241.01,11.72409964]
[1732749363497,2.6347,241.13,241.01,11.72409964]
[1732749363701,7.76677628,241.12,241.01,11.72409964]
[1732749363899,1.3172,241.13,241.01,11.72409964]
[1732749364096,7.76678925,241.12,241.01,11.72409964]
[1732749364401,1.309,241.15,241.01,11.72409964]
[1732749364598,7.76472705,241.14,241.01,11.72409964]
[1732749364898,7.76472705,241.13,241.01,11.72409964]
[1732749365097,1.309,241.15,241.01,11.72409964]
[1732749365289,7.76151863,241.14,241.01,11.72409964]
[1732749365497,1.309,241.15,241.05,11.72409964]
[1732749365695,7.76400047,241.14,241.06,2.38]
[1732749365896,1.309,241.15,241.06,2.38]
[1732749366098,7.7643161,241.14,241.06,2.38]
[1732749366301,1.309,241.15,241.06,2.38]
[1732749366693,2.0715,241.13,241.06,2.38]
[1732749366900,1.309,241.15,241.06,2.38]
[1732749367492,1.309,241.15,241.05,11.72409964]
[1732749367691,1.309,241.15,241.06,2.38]
[1732749367692,2.0715,241.13,241.06,2.38]
[1732749367899,1.309,241.15,241.06,2.38]
[1732749368194,2.0715,241.13,241.06,2.38]
[1732749368402,1.309,241.15,241.06,2.38]
[1732749369699,2.0718,241.09,241.06,2.38]
[1732749370305,2.0717,241.1,241.06,2.38]
[1732749370497,1.309,241.15,241.06,2.38]
[1732749370702,2.0712,241.16,241.1,2.0717]
[1732749370893,1.2877,241.23,241.13,11.72409964]
[1732749371094,1.2877,241.23,241.13,14.10409964]
[1732749371504,1.2877,241.23,241.07,2.4049]
[1732749371505,7.75894122,241.22,241.09,11.72409964]
[1732749371706,11.72409964,241.22,241.1,2.38]
[1732749371910,2.38,241.21,241.05,11.72409964]
[1732749372109,2.0719,241.08,241.06,2.38]
[1732749372405,11.72409964,241.14,240.97,11.72409964]
[1732749372604,2.0724,241.02,240.98,2.38]
[1732749373005,3.8522,241.13,240.98,2.38]
[1732749373813,3.8522,241.13,240.99,2.0727]
[1732749374105,3.8522,241.13,241.01,11.72409964]
[1732749374906,2.0723,241.05,241.01,11.72409964]
[1732749375102,3.8522,241.13,241.01,11.72409964]
[1732749375306,2.0723,241.05,241.01,11.72409964]
[1732749375609,3.8522,241.13,241.01,11.72409964]
[1732749375807,7.76848393,241.12,241.01,11.72409964]
[1732749376007,2.0724,241.03,241.01,11.72409964]
[1732749376610,2.0726,241.01,240.97,2.42]
[1732749377415,2.0725,241.03,240.98,2.0728]
[1732749377707,3.8522,241.13,241.0,11.72409964]
[1732749377909,7.76873729,241.12,241.0,11.72409964]
[1732749378210,3.8522,241.13,241.0,11.72409964]
[1732749378410,7.76966886,241.12,240.97,2.42]
[1732749378714,3.8522,241.13,240.97,14.14409964]
[1732749378914,7.76977829,241.12,241.01,11.72409964]
[1732749379110,3.8522,241.13,241.01,11.72409964]
[1732749379311,7.7697056,241.12,241.01,11.72409964]
[1732749379511,3.8522,241.13,241.01,11.72409964]
[1732749379915,2.0721,241.07,241.02,2.0725]
[1732749380111,3.8522,241.13,241.03,2.4]
[1732749380414,7.77025601,241.12,241.03,2.4]
[1732749380607,3.8522,241.13,241.03,2.4]
[1732749380807,7.77012465,241.12,241.03,2.4]
[1732749381010,7.76995479,241.11,241.03,2.4]
[1732749381206,3.8522,241.13,241.03,2.4]
[1732749381514,7.77032538,241.12,241.03,2.4]
[1732749381703,7.77032538,241.11,241.03,2.4]
[1732749381907,3.8522,241.13,241.03,2.4]
[1732749381908,2.0723,241.04,241.03,2.4]
[1732749382613,2.0725,241.02,240.98,2.42]
[1732749382810,3.8522,241.13,240.98,2.42]
[1732749383013,7.76932714,241.12,240.97,11.72409964]
[1732749383215,2.0726,241.01,240.96,11.72409964]
[1732749384317,2.0725,241.02,240.97,2.0729]
[1732749384905,2.0726,241.01,240.97,2.0729]
[1732749385311,2.42,241.08,240.96,11.72409964]
[1732749385516,2.42,241.08,240.93,2.0732]
[1732749386019,7.77014807,241.07,240.93,2.0732]
[1732749386218,7.77014807,241.06,240.92,14.14409964]
[1732749386410,2.42,241.08,240.96,11.72409964]
[1732749386411,7.77014807,241.05,240.96,11.72409964]
[1732749386615,2.42,241.08,240.96,11.72409964]
[1732749387119,3.8522,241.13,241.0,11.72409964]
[1732749387324,10.1931352,241.12,241.0,11.72409964]
[1732749387523,7.7731352,241.11,241.0,11.72409964]
[1732749388526,7.7731352,241.11,240.96,11.72409964]
[1732749389117,2.0726,241.01,240.96,13.79709964]
[1732749390320,2.0725,241.03,240.96,11.72409964]
[1732749390620,2.42,241.12,241.0,11.72409964]
[1732749390817,7.78163436,241.11,241.0,11.72409964]
[1732749391021,7.78163436,241.1,241.0,11.72409964]
[1732749391328,7.78163436,241.09,241.0,11.72409964]
[1732749391514,2.42,241.12,241.0,11.72409964]
[1732749391515,2.0725,241.03,241.0,11.72409964]
[1732749391715,2.42,241.12,241.0,11.72409964]
[1732749391923,3.8522,241.13,241.0,11.72409964]
[1732749391924,7.7833927,241.11,241.0,11.72409964]
[1732749392115,3.8522,241.13,241.04,2.0722]
[1732749392116,2.0719,241.09,241.04,2.0722]
[1732749392518,2.5878,241.13,241.0,11.72409964]
[1732749392721,7.78516567,241.12,241.04,11.72409964]
[1732749392919,2.5878,241.13,241.04,11.72409964]
[1732749392920,7.78516567,241.11,241.04,11.72409964]
[1732749393121,7.78516567,241.1,241.04,14.14409964]
[1732749393322,3.6627,241.19,241.04,14.14409964]
[1732749393523,9.04729438,241.18,241.04,14.14409964]
[1732749393716,2.0718,241.11,241.05,2.0722]
[1732749394426,1.2591,241.18,241.05,2.0722]
[1732749394629,7.79095078,241.17,241.04,2.42]
[1732749394927,7.79095078,241.16,241.04,2.42]
[1732749395131,7.79095078,241.15,241.04,2.42]
[1732749395422,7.79095078,241.14,241.04,2.42]
[1732749395627,7.79095078,241.13,241.04,2.42]
[1732749395925,1.3197,241.15,241.04,2.42]
[1732749395926,7.79095078,241.12,241.04,2.42]
[1732749396126,7.79095078,241.11,241.04,14.14409964]
[1732749396329,7.79095078,241.1,241.04,14.14409964]
[1732749396520,2.072,241.08,241.04,14.14409964]
[1732749396720,1.3197,241.15,241.04,14.14409964]
[1732749396922,7.79658563,241.14,241.04,14.14409964]
[1732749397123,7.79658563,241.13,241.04,14.14409964]
[1732749397323,7.79658563,241.12,241.04,2.42]
[1732749397523,2.0721,241.07,241.04,2.42]
[1732749397727,1.3197,241.15,241.04,2.42]
[1732749398028,7.800491,241.14,241.04,2.42]
[1732749398228,7.800491,241.13,241.05,11.72409964]
[1732749398424,7.800491,241.17,241.1,11.72409964]
[1732749398725,7.800491,241.16,241.1,11.72409964]
[1732749398933,7.800491,241.15,241.1,11.72409964]
[1732749399118,7.800491,241.15,241.14,13.79559964]
[1732749399321,7.800491,241.15,241.14,11.72409964]
[1732749399526,2.4,241.26,241.14,11.72409964]
[1732749399725,7.81087829,241.25,241.16,2.0712]
[1732749399922,7.81087829,241.24,241.16,2.4]
[1732749400230,7.81087829,241.23,241.18,11.72409964]
[1732749400527,7.81087829,241.22,241.18,11.72409964]
[1732749400728,7.81087829,241.21,241.18,11.72409964]
[1732749400922,7.81087829,241.2,241.18,11.72409964]
[1732749401127,7.81087829,241.19,241.16,2.4]
[1732749401345,7.81087829,241.18,241.16,2.4]
[1732749401631,2.4,241.3,241.16,2.4]
[1732749401827,15.55449964,241.31,241.16,2.4]
[1732749401828,7.81369805,241.29,241.18,11.72409964]
[1732749402024,7.81369805,241.28,241.18,11.72409964]
[1732749402225,2.0707,241.23,241.18,11.72409964]
[1732749402424,7.81369805,241.22,241.18,11.72409964]
[1732749402623,7.81369805,241.21,241.18,11.72409964]
[1732749402825,7.81369805,241.2,241.18,11.72409964]
[1732749403034,7.81369805,241.19,241.18,11.72409964]
[1732749403227,2.0708,241.22,241.18,11.72409964]
[1732749403427,7.81305082,241.21,241.18,11.72409964]
[1732749403623,2.0707,241.24,241.18,11.72409964]
[1732749403928,7.81363259,241.23,241.18,11.72409964]
[1732749404225,7.81363259,241.22,241.18,11.72409964]
[1732749404427,3.8304,241.31,241.18,11.72409964]
[1732749404730,7.8140728,241.3,241.18,11.72409964]
[1732749404929,3.8304,241.31,241.18,11.72409964]
[1732749404930,7.8140728,241.29,241.18,11.72409964]
[1732749405134,3.8304,241.31,241.18,11.72409964]
[1732749405135,7.8140728,241.3,241.18,11.72409964]
[1732749405325,7.8140728,241.29,241.18,11.72409964]
[1732749405528,7.8140728,241.28,241.18,11.72409964]
[1732749405728,7.8140728,241.27,241.18,11.72409964]
[1732749405926,15.55449964,241.31,241.16,1.303]
[1732749405927,2.0712,241.18,241.16,1.303]
[1732749406128,2.4,241.28,241.15,3.674]
[1732749406332,7.8091346,241.27,241.15,3.674]
[1732749406626,7.8091346,241.26,241.15,3.674]
[1732749406823,7.8091346,241.25,241.15,5.7454]
[1732749407023,7.8091346,241.24,241.15,5.7454]
[1732749407223,7.8091346,241.23,241.15,5.7454]
[1732749407429,7.8091346,241.22,241.15,3.674]
[1732749407634,7.8091346,241.21,241.15,1.274]
[1732749407831,2.0712,241.18,241.15,1.274]
[1732749408036,2.4,241.28,241.15,1.274]
[1732749408235,7.80871364,241.27,241.15,1.274]
[1732749408531,7.80871364,241.26,241.18,11.72409964]
[1732749408732,7.80871364,241.25,241.22,11.72409964]
[1732749408928,7.80871364,241.24,241.22,11.72409964]
[1732749409128,2.4,241.36,241.22,11.72409964]
[1732749409333,7.80595543,241.35,241.24,2.0706]
[1732749409538,7.80595543,241.34,241.22,11.72409964]
[1732749409736,7.80595543,241.33,241.22,11.72409964]
[1732749410032,7.80595543,241.32,241.26,11.72409964]
[1732749410234,7.80595543,241.31,241.26,11.72409964]
[1732749410534,9.87605543,241.3,241.26,11.72409964]
[1732749410835,7.80595543,241.29,241.26,11.72409964]
[1732749411031,2.0701,241.3,241.26,11.72409964]
[1732749411235,2.4,241.37,241.26,11.72409964]
[1732749411236,2.0702,241.29,241.26,11.72409964]
[1732749412440,2.4,241.37,241.26,11.72409964]
[1732749412628,7.79386403,241.36,241.26,11.72409964]
[1732749412834,7.79386403,241.35,241.26,11.72409964]
[1732749413041,9.86366403,241.34,241.28,2.0703]
[1732749413236,2.0698,241.34,241.28,2.0703]
[1732749413445,2.0698,241.34,241.26,11.72409964]
[1732749413640,2.0697,241.35,241.3,11.72409964]
[1732749414140,2.0697,241.35,241.3,13.79409964]
[1732749414635,2.0696,241.36,241.3,13.79409964]
[1732749414840,2.4,241.41,241.3,13.79409964]
[1732749415042,7.78526517,241.4,241.3,11.72409964]
[1732749415345,2.0698,241.33,241.3,11.72409964]
[1732749415735,2.07,241.31,241.3,11.72409964]
[1732749415937,2.4,241.41,241.3,11.72409964]
[1732749416132,7.77982389,241.4,241.3,11.72409964]
[1732749416442,2.4,241.41,241.3,11.72409964]
[1732749416443,7.77982389,241.39,241.3,11.72409964]
[1732749416642,2.07,241.31,241.3,11.72409964]
[1732749417045,2.07,241.31,241.26,13.79449964]
[1732749417344,2.4,241.41,241.3,11.72409964]
[1732749417541,7.77440277,241.4,241.3,11.72409964]
[1732749417745,7.77440277,241.39,241.3,11.72409964]
[1732749417945,7.77440277,241.38,241.3,11.72409964]
[1732749418146,7.77440277,241.37,241.3,11.72409964]
[1732749418447,2.0697,241.35,241.3,13.79419964]
[1732749418748,2.4,241.41,241.3,11.72409964]
[1732749419041,2.0697,241.35,241.3,11.72409964]
[1732749419246,2.4,241.41,241.3,11.72409964]
[1732749419448,7.77128624,241.4,241.3,11.72409964]
[1732749419650,7.77128624,241.39,241.3,11.72409964]
[1732749419949,7.77128624,241.38,241.3,11.72409964]
[1732749420144,2.0694,241.39,241.3,13.79419964]
[1732749420339,7.77131647,241.38,241.3,11.72409964]
[1732749420543,7.77131647,241.37,241.3,11.72409964]
[1732749420744,2.4,241.42,241.3,11.72409964]
[1732749420945,7.77060813,241.41,241.3,11.72409964]
[1732749421145,2.4,241.42,241.3,11.72409964]
[1732749421146,7.77060813,241.4,241.3,11.72409964]
[1732749421553,2.0697,241.35,241.3,11.72409964]